[Event "*** Titled Tuesday Blitz"]
[Site "Chess.com"]
[Date "2020.04.28"]
[Round "6"]
[White "Casablanca"]
[Black "silverback96"]
[Result "1-0"]
[WhiteElo "2400"]
[BlackElo "2127"]
[TimeControl "180+1"]
[EndTime "11:08:24 PDT"]
[Termination "Casablanca won on time"]

1. d4 {[%clk 0:03:00.9]} 1... Nf6 {[%clk 0:02:56.6]} 2. Bg5 {[%clk 0:02:57.7]}
2... e6 {[%clk 0:02:53.6]} 3. Nd2 {[%clk 0:02:57.1]} 3... d5 {[%clk 0:02:51]} 4.
e3 {[%clk 0:02:56.9]} 4... Bd6 {[%clk 0:02:48.6]} 5. c3 {[%clk 0:02:56.9]} 5...
O-O {[%clk 0:02:46.8]} 6. Ngf3 {[%clk 0:02:57.3]} 6... c5 {[%clk 0:02:40.1]} 7.
Bd3 {[%clk 0:02:57.2]} 7... Qb6 {[%clk 0:02:33.5]} 8. Rb1 {[%clk 0:02:51.1]}
8... Nbd7 {[%clk 0:02:33]} 9. O-O {[%clk 0:02:49.2]} 9... h6 {[%clk 0:02:32.9]}
10. Bh4 {[%clk 0:02:49]} 10... Qc7 {[%clk 0:02:29.9]} 11. Re1 {[%clk 0:02:32.7]}
11... e5 {[%clk 0:02:24.6]} 12. dxe5 {[%clk 0:02:06.5]} 12... Nxe5 {[%clk
0:02:25.5]} 13. Nxe5 {[%clk 0:02:06.9]} 13... Bxe5 {[%clk 0:02:24.7]} 14. Bg3
{[%clk 0:02:06.9]} 14... Bg4 {[%clk 0:02:16.6]} 15. Qa4 {[%clk 0:01:59]} 15...
Bxg3 {[%clk 0:02:15.2]} 16. hxg3 {[%clk 0:01:58.8]} 16... Rad8 {[%clk
0:01:53.4]} 17. Rbc1 {[%clk 0:01:39.1]} 17... Be6 {[%clk 0:01:47.8]} 18. Nf3
{[%clk 0:01:35.3]} 18... c4 {[%clk 0:01:42.7]} 19. Bb1 {[%clk 0:01:34.1]} 19...
Ne4 {[%clk 0:01:42.3]} 20. Bxe4 {[%clk 0:01:32.2]} 20... dxe4 {[%clk 0:01:43.2]}
21. Nd4 {[%clk 0:01:31.8]} 21... Bg4 {[%clk 0:01:41.6]} 22. b3 {[%clk
0:01:04.7]} 22... Rd5 {[%clk 0:01:21.6]} 23. b4 {[%clk 0:00:52.7]} 23... a6
{[%clk 0:01:18.9]} 24. Qc2 {[%clk 0:00:49.3]} 24... Qd7 {[%clk 0:01:05.6]} 25.
a4 {[%clk 0:00:46.5]} 25... Rd8 {[%clk 0:01:04.1]} 26. Ra1 {[%clk 0:00:40.8]}
26... Rh5 {[%clk 0:01:04]} 27. Qxe4 {[%clk 0:00:34.1]} 27... Re8 {[%clk
0:00:58.5]} 28. Qf4 {[%clk 0:00:28.4]} 28... Bh3 {[%clk 0:00:49.1]} 29. gxh3
{[%clk 0:00:26.3]} 29... Qxh3 {[%clk 0:00:48.5]} 30. Qf3 {[%clk 0:00:26.7]}
30... Ree5 {[%clk 0:00:27.9]} 31. Qg2 {[%clk 0:00:24.3]} 31... Qg4 {[%clk
0:00:26.7]} 32. f3 {[%clk 0:00:22.4]} 32... Qd7 {[%clk 0:00:25]} 33. g4 {[%clk
0:00:22.2]} 33... Rh4 {[%clk 0:00:20.3]} 34. Nf5 {[%clk 0:00:21.2]} 34... Rxf5
{[%clk 0:00:19.1]} 35. gxf5 {[%clk 0:00:21.1]} 35... Qxf5 {[%clk 0:00:20]} 36.
Rad1 {[%clk 0:00:20.5]} 36... Rh5 {[%clk 0:00:19.8]} 37. f4 {[%clk 0:00:17.9]}
37... Rh4 {[%clk 0:00:19.6]} 38. Rd8+ {[%clk 0:00:15.6]} 38... Kh7 {[%clk
0:00:19.5]} 39. Rd5 {[%clk 0:00:16.2]} 39... Qe6 {[%clk 0:00:17.3]} 40. Re5
{[%clk 0:00:16.5]} 40... Qd7 {[%clk 0:00:17]} 41. Qe4+ {[%clk 0:00:17]} 41... g6
{[%clk 0:00:16.7]} 42. Qf3 {[%clk 0:00:11]} 42... Rg4+ {[%clk 0:00:16]} 43. Kf2
{[%clk 0:00:11.2]} 43... Rh4 {[%clk 0:00:13.2]} 44. Qg3 {[%clk 0:00:06.4]} 44...
Rh3 {[%clk 0:00:11.6]} 45. Qg2 {[%clk 0:00:06.7]} 45... Rh4 {[%clk 0:00:06.7]}
46. Rd5 {[%clk 0:00:06.1]} 46... Qe6 {[%clk 0:00:05.7]} 47. Re5 {[%clk
0:00:05.8]} 47... Qd7 {[%clk 0:00:05.7]} 48. Ke2 {[%clk 0:00:06.4]} 48... Qxa4
{[%clk 0:00:06]} 49. Rd1 {[%clk 0:00:06.3]} 49... Qc2+ {[%clk 0:00:03.4]} 50.
Rd2 {[%clk 0:00:06.8]} 50... Qxc3 {[%clk 0:00:04]} 51. Qg3 {[%clk 0:00:04.8]}
51... Rh1 {[%clk 0:00:03.3]} 52. Qg2 {[%clk 0:00:04.7]} 52... Qc1 {[%clk
0:00:03.2]} 53. Kf3 {[%clk 0:00:03.3]} 53... Rf1+ {[%clk 0:00:02.6]} 54. Ke4
{[%clk 0:00:03.8]} 54... Rg1 {[%clk 0:00:03.1]} 55. Qe2 {[%clk 0:00:03.3]} 55...
f5+ {[%clk 0:00:03.3]} 56. Kd5 {[%clk 0:00:03.6]} 56... Qa1 {[%clk 0:00:02.4]}
57. Ke6 {[%clk 0:00:03.5]} 57... Qa4 {[%clk 0:00:01.3]} 58. Rd7+ {[%clk
0:00:04]} 58... Qxd7+ {[%clk 0:00:01.6]} 59. Kxd7 {[%clk 0:00:04.1]} 59... Kg7
{[%clk 0:00:02.5]} 60. Re7+ {[%clk 0:00:04.6]} 60... Kf8 {[%clk 0:00:03.3]} 61.
Qxc4 {[%clk 0:00:05.3]} 61... Rd1+ {[%clk 0:00:03]} 62. Ke6 {[%clk 0:00:03.4]}
1-0

[Event "*** Titled Tuesday Blitz"]
[Site "Chess.com"]
[Date "2020.04.28"]
[Round "6"]
[White "Murad_Ibrahimli"]
[Black "verdest"]
[Result "1-0"]
[WhiteElo "2759"]
[BlackElo "2583"]
[TimeControl "180+1"]
[EndTime "11:08:26 PDT"]
[Termination "Murad_Ibrahimli won by resignation"]

1. d4 {[%clk 0:03:00.9]} 1... Nf6 {[%clk 0:03:00]} 2. c4 {[%clk 0:03:00.6]} 2...
e6 {[%clk 0:02:59.8]} 3. Nf3 {[%clk 0:02:58.9]} 3... d5 {[%clk 0:03:00.2]} 4.
Nc3 {[%clk 0:02:58.2]} 4... Bb4 {[%clk 0:02:59.9]} 5. Bg5 {[%clk 0:02:57.4]}
5... h6 {[%clk 0:02:58.4]} 6. Bxf6 {[%clk 0:02:56.4]} 6... Qxf6 {[%clk
0:02:59.3]} 7. Qa4+ {[%clk 0:02:55.4]} 7... Nc6 {[%clk 0:02:59.3]} 8. e3 {[%clk
0:02:54.5]} 8... O-O {[%clk 0:02:57.2]} 9. Rc1 {[%clk 0:02:52.9]} 9... Bd7
{[%clk 0:02:49.3]} 10. Qc2 {[%clk 0:02:47.5]} 10... dxc4 {[%clk 0:02:44.1]} 11.
Bxc4 {[%clk 0:02:45.5]} 11... Bd6 {[%clk 0:02:44.6]} 12. O-O {[%clk 0:02:43.5]}
12... e5 {[%clk 0:02:44.8]} 13. d5 {[%clk 0:02:40.5]} 13... Ne7 {[%clk
0:02:44.5]} 14. Nd2 {[%clk 0:02:28]} 14... Ng6 {[%clk 0:02:43.5]} 15. Bd3 {[%clk
0:02:22.9]} 15... Nh4 {[%clk 0:02:25.9]} 16. Nde4 {[%clk 0:02:06.4]} 16... Qe7
{[%clk 0:02:18.6]} 17. Ng3 {[%clk 0:02:00.2]} 17... f5 {[%clk 0:02:10.6]} 18. f3
{[%clk 0:01:55.4]} 18... Bc5 {[%clk 0:01:57.9]} 19. Nd1 {[%clk 0:01:48.5]} 19...
Bb6 {[%clk 0:01:56.3]} 20. Kh1 {[%clk 0:01:46.1]} 20... Kh8 {[%clk 0:01:51.2]}
21. Re1 {[%clk 0:01:35.6]} 21... Rae8 {[%clk 0:01:49.7]} 22. a4 {[%clk
0:01:20.5]} 22... a5 {[%clk 0:01:40.5]} 23. Nc3 {[%clk 0:01:03.1]} 23... Qg5
{[%clk 0:01:37.1]} 24. e4 {[%clk 0:00:48.8]} 24... f4 {[%clk 0:01:22.6]} 25. Nf5
{[%clk 0:00:48.4]} 25... Bxf5 {[%clk 0:00:58]} 26. exf5 {[%clk 0:00:43.6]} 26...
Nxf5 {[%clk 0:00:43.2]} 27. Bxf5 {[%clk 0:00:37.6]} 27... Qxf5 {[%clk
0:00:37.7]} 28. Ne4 {[%clk 0:00:36.8]} 28... Rd8 {[%clk 0:00:32.9]} 29. Rcd1
{[%clk 0:00:26.1]} 29... Rd7 {[%clk 0:00:30.7]} 30. Qb3 {[%clk 0:00:16.7]} 30...
Rfd8 {[%clk 0:00:28.3]} 31. h3 {[%clk 0:00:15.8]} 31... Bd4 {[%clk 0:00:22.8]}
32. Qxb7 {[%clk 0:00:15.1]} 32... c5 {[%clk 0:00:16.7]} 33. Qb5 {[%clk
0:00:12.3]} 33... Rxd5 {[%clk 0:00:15.4]} 34. Qxa5 {[%clk 0:00:10.7]} 34... Rb8
{[%clk 0:00:13.6]} 35. Re2 {[%clk 0:00:08.4]} 35... Qd7 {[%clk 0:00:09.7]} 36.
Qe1 {[%clk 0:00:04.4]} 36... Qb7 {[%clk 0:00:08.7]} 37. Rdd2 {[%clk 0:00:04]}
37... Rdd8 {[%clk 0:00:07.5]} 38. Qc1 {[%clk 0:00:03.9]} 38... Qb4 {[%clk
0:00:07.3]} 39. Qc2 {[%clk 0:00:03.6]} 39... Be3 {[%clk 0:00:07]} 40. Rxd8+
{[%clk 0:00:03.2]} 40... Rxd8 {[%clk 0:00:07.9]} 41. Qc3 {[%clk 0:00:03.6]}
41... Qxc3 {[%clk 0:00:07.6]} 42. bxc3 {[%clk 0:00:03.2]} 42... Rd1+ {[%clk
0:00:08.5]} 43. Kh2 {[%clk 0:00:03.6]} 43... Bg1+ {[%clk 0:00:08.9]} 44. Kh1
{[%clk 0:00:04]} 44... Bf2+ {[%clk 0:00:07.1]} 45. Kh2 {[%clk 0:00:04.2]} 45...
Bg1+ {[%clk 0:00:07.5]} 46. Kh1 {[%clk 0:00:04.6]} 46... Be3+ {[%clk 0:00:07.7]}
47. Kh2 {[%clk 0:00:04.9]} 47... Ra1 {[%clk 0:00:08.3]} 48. h4 {[%clk
0:00:04.9]} 48... Rxa4 {[%clk 0:00:07.3]} 49. Kh3 {[%clk 0:00:05.3]} 49... Kg8
{[%clk 0:00:05.3]} 50. h5 {[%clk 0:00:05.2]} 50... Kf7 {[%clk 0:00:04.8]} 51.
Kg4 {[%clk 0:00:05.4]} 51... Ra3 {[%clk 0:00:03.4]} 52. Rb2 {[%clk 0:00:05.4]}
52... Ke6 {[%clk 0:00:02.6]} 53. c4 {[%clk 0:00:04.2]} 53... Ra1 {[%clk
0:00:01.6]} 54. Rb6+ {[%clk 0:00:04]} 54... Kf7 {[%clk 0:00:01.2]} 55. Kf5
{[%clk 0:00:04.5]} 55... Rg1 {[%clk 0:00:01.2]} 56. Rg6 {[%clk 0:00:04.5]} 56...
Rxg2 {[%clk 0:00:02]} 57. Rxg2 {[%clk 0:00:03.8]} 57... Bd4 {[%clk 0:00:02.9]}
58. Nd6+ {[%clk 0:00:03.6]} 58... Ke7 {[%clk 0:00:03.1]} 59. Nb5 {[%clk
0:00:03.9]} 59... Kf7 {[%clk 0:00:02.6]} 60. Ke4 {[%clk 0:00:04.2]} 60... Kf6
{[%clk 0:00:02.4]} 61. Nxd4 {[%clk 0:00:04.4]} 61... cxd4 {[%clk 0:00:02.8]} 62.
Rg6+ {[%clk 0:00:04.8]} 1-0

[Event "*** Titled Tuesday Blitz"]
[Site "Chess.com"]
[Date "2020.04.28"]
[Round "6"]
[White "vugarrasulov"]
[Black "Korchmar_Vasiliy"]
[Result "1-0"]
[WhiteElo "2770"]
[BlackElo "2629"]
[TimeControl "180+1"]
[EndTime "11:08:27 PDT"]
[Termination "vugarrasulov won by resignation"]

1. e4 {[%clk 0:03:00.9]} 1... c5 {[%clk 0:02:59.9]} 2. Nf3 {[%clk 0:03:00.4]}
2... d6 {[%clk 0:02:59.8]} 3. d4 {[%clk 0:03:00]} 3... cxd4 {[%clk 0:03:00.7]}
4. Nxd4 {[%clk 0:03:00.9]} 4... Nf6 {[%clk 0:03:00.9]} 5. Nc3 {[%clk 0:03:01.4]}
5... Nc6 {[%clk 0:03:00]} 6. Bg5 {[%clk 0:03:00.1]} 6... e6 {[%clk 0:02:59.8]}
7. Qd2 {[%clk 0:03:00.3]} 7... a6 {[%clk 0:02:59.3]} 8. O-O-O {[%clk 0:03:00.7]}
8... h6 {[%clk 0:02:59]} 9. Bf4 {[%clk 0:02:51.9]} 9... Bd7 {[%clk 0:02:52.4]}
10. Nb3 {[%clk 0:02:41.2]} 10... Ne5 {[%clk 0:02:39.7]} 11. Be3 {[%clk
0:02:38.7]} 11... Rc8 {[%clk 0:02:35.6]} 12. f4 {[%clk 0:02:33.9]} 12... Nc4
{[%clk 0:02:34.1]} 13. Bxc4 {[%clk 0:02:34.3]} 13... Rxc4 {[%clk 0:02:34.7]} 14.
e5 {[%clk 0:02:27.3]} 14... dxe5 {[%clk 0:02:27.4]} 15. fxe5 {[%clk 0:02:28.2]}
15... Ng4 {[%clk 0:02:27.6]} 16. Bb6 {[%clk 0:02:12.1]} 16... Qc8 {[%clk
0:02:08.1]} 17. Qe2 {[%clk 0:02:07.1]} 17... Bb4 {[%clk 0:01:23.6]} 18. h3
{[%clk 0:01:57.7]} 18... Nxe5 {[%clk 0:01:09.3]} 19. Qxe5 {[%clk 0:01:56.1]}
19... O-O {[%clk 0:01:09.9]} 20. Kb1 {[%clk 0:01:37.3]} 20... Bxc3 {[%clk
0:00:42.1]} 21. bxc3 {[%clk 0:01:37]} 21... f6 {[%clk 0:00:42.7]} 22. Qd6 {[%clk
0:01:29.7]} 22... Bb5 {[%clk 0:00:43.1]} 23. Nd4 {[%clk 0:01:20.9]} 23... Kh8
{[%clk 0:00:33.7]} 24. Nxe6 {[%clk 0:01:12.3]} 24... Re8 {[%clk 0:00:33.3]} 25.
Nd4 {[%clk 0:01:12.6]} 25... Rxc3 {[%clk 0:00:31.5]} 26. Rhe1 {[%clk 0:01:11.8]}
26... Ba4 {[%clk 0:00:28.5]} 27. Rxe8+ {[%clk 0:01:10.1]} 27... Qxe8 {[%clk
0:00:29.4]} 28. Qd5 {[%clk 0:00:46.6]} 28... Qe7 {[%clk 0:00:23.5]} 29. Nb3
{[%clk 0:00:36.6]} 29... Rc8 {[%clk 0:00:20.8]} 30. Qf5 {[%clk 0:00:30.2]} 30...
Re8 {[%clk 0:00:07.3]} 31. Bd4 {[%clk 0:00:30.5]} 31... Bc6 {[%clk 0:00:06.7]}
32. g4 {[%clk 0:00:19.9]} 32... Be4 {[%clk 0:00:05.9]} 33. Qf4 {[%clk
0:00:20.4]} 33... a5 {[%clk 0:00:05.6]} 34. h4 {[%clk 0:00:17.3]} 34... a4
{[%clk 0:00:05.8]} 35. Nc5 {[%clk 0:00:17.6]} 35... b6 {[%clk 0:00:05.4]} 36.
Qxe4 {[%clk 0:00:10.9]} 36... Qxe4 {[%clk 0:00:06.3]} 37. Nxe4 {[%clk
0:00:11.8]} 37... Rxe4 {[%clk 0:00:06.7]} 38. g5 {[%clk 0:00:12.1]} 38... hxg5
{[%clk 0:00:04.8]} 39. hxg5 {[%clk 0:00:13]} 39... fxg5 {[%clk 0:00:05.7]} 40.
Bxb6 {[%clk 0:00:13.6]} 40... Rb4+ {[%clk 0:00:05.3]} 41. Kc1 {[%clk 0:00:13.1]}
41... Rxb6 {[%clk 0:00:06.2]} 42. Rg1 {[%clk 0:00:12.2]} 42... Rb5 {[%clk
0:00:03.3]} 43. Kd2 {[%clk 0:00:11.6]} 43... Kh7 {[%clk 0:00:03.3]} 44. Kd3
{[%clk 0:00:09.5]} 44... Kg6 {[%clk 0:00:03.8]} 45. c4 {[%clk 0:00:10]} 45...
Rb2 {[%clk 0:00:03.8]} 46. c5 {[%clk 0:00:10.4]} 46... Rb8 {[%clk 0:00:01.9]}
47. Kc4 {[%clk 0:00:09.5]} 47... Kf5 {[%clk 0:00:01.5]} 48. c6 {[%clk
0:00:09.9]} 48... g4 {[%clk 0:00:02]} 49. Kc5 {[%clk 0:00:10.2]} 49... Kf4
{[%clk 0:00:01.8]} 50. c7 {[%clk 0:00:10]} 50... Rc8 {[%clk 0:00:02.2]} 51. Kc6
{[%clk 0:00:09.8]} 51... g3 {[%clk 0:00:02.7]} 52. Kd7 {[%clk 0:00:08.6]} 52...
Rxc7+ {[%clk 0:00:03]} 53. Kxc7 {[%clk 0:00:09.5]} 53... Kf3 {[%clk 0:00:03.6]}
54. Rf1+ {[%clk 0:00:08.8]} 54... Ke2 {[%clk 0:00:03.5]} 55. Rf7 {[%clk
0:00:08.7]} 55... g2 {[%clk 0:00:02.2]} 56. Rxg7 {[%clk 0:00:08.6]} 56... Kf2
{[%clk 0:00:02.8]} 57. Kb6 {[%clk 0:00:09.2]} 57... g1=Q {[%clk 0:00:03]} 58.
Rxg1 {[%clk 0:00:09.7]} 58... Kxg1 {[%clk 0:00:03.9]} 59. Kb5 {[%clk 0:00:10.4]}
59... Kf2 {[%clk 0:00:04.8]} 60. Kxa4 {[%clk 0:00:10.6]} 60... Ke3 {[%clk
0:00:05.7]} 61. Kb5 {[%clk 0:00:11.2]} 61... Ke4 {[%clk 0:00:06.6]} 62. a4
{[%clk 0:00:11.9]} 1-0

[Event "*** Titled Tuesday Blitz"]
[Site "Chess.com"]
[Date "2020.04.28"]
[Round "6"]
[White "mirceaparligras"]
[Black "dpopadic"]
[Result "1-0"]
[WhiteElo "2671"]
[BlackElo "2350"]
[TimeControl "180+1"]
[EndTime "11:08:27 PDT"]
[Termination "mirceaparligras won by checkmate"]

1. d4 {[%clk 0:03:00.9]} 1... Nf6 {[%clk 0:02:59]} 2. c4 {[%clk 0:03:00.6]} 2...
g6 {[%clk 0:02:59.2]} 3. Nc3 {[%clk 0:03:01.1]} 3... Bg7 {[%clk 0:02:59.8]} 4.
e4 {[%clk 0:03:01.7]} 4... d6 {[%clk 0:03:00.6]} 5. h3 {[%clk 0:03:01.9]} 5...
O-O {[%clk 0:03:01]} 6. Be3 {[%clk 0:03:02.4]} 6... e5 {[%clk 0:03:00.6]} 7. d5
{[%clk 0:03:02.8]} 7... a5 {[%clk 0:03:00.7]} 8. g4 {[%clk 0:03:03]} 8... Na6
{[%clk 0:03:00.9]} 9. Nge2 {[%clk 0:03:03.6]} 9... Nd7 {[%clk 0:03:01.1]} 10.
Ng3 {[%clk 0:03:03.7]} 10... Ndc5 {[%clk 0:03:01.1]} 11. h4 {[%clk 0:02:58.4]}
11... Re8 {[%clk 0:03:00.8]} 12. h5 {[%clk 0:02:54.1]} 12... c6 {[%clk 0:03:01]}
13. hxg6 {[%clk 0:02:51.3]} 13... hxg6 {[%clk 0:03:00.4]} 14. Be2 {[%clk
0:02:46.5]} 14... cxd5 {[%clk 0:02:57.5]} 15. cxd5 {[%clk 0:02:39.1]} 15... Bd7
{[%clk 0:02:56.9]} 16. Qd2 {[%clk 0:02:34.3]} 16... Rb8 {[%clk 0:02:55]} 17. Bh6
{[%clk 0:02:27.7]} 17... Bf6 {[%clk 0:02:54.4]} 18. Bb5 {[%clk 0:02:17]} 18...
Bxb5 {[%clk 0:02:45.9]} 19. Nxb5 {[%clk 0:02:16.6]} 19... Nb4 {[%clk 0:02:36.1]}
20. Kf1 {[%clk 0:01:54.9]} 20... Qd7 {[%clk 0:02:31.9]} 21. Qe2 {[%clk
0:01:44.8]} 21... Nbd3 {[%clk 0:02:25.6]} 22. Nc3 {[%clk 0:01:42.7]} 22... Nf4
{[%clk 0:02:23.8]} 23. Qf3 {[%clk 0:01:41.7]} 23... Qe7 {[%clk 0:02:09.8]} 24.
Bxf4 {[%clk 0:01:26.7]} 24... exf4 {[%clk 0:02:09.2]} 25. Qxf4 {[%clk
0:01:27.6]} 25... Bg5 {[%clk 0:02:03]} 26. Qf3 {[%clk 0:01:25.4]} 26... b5
{[%clk 0:02:01.9]} 27. Re1 {[%clk 0:01:18.3]} 27... b4 {[%clk 0:01:56.7]} 28.
Nd1 {[%clk 0:01:02.5]} 28... Qe5 {[%clk 0:01:47.5]} 29. Kg2 {[%clk 0:00:53.2]}
29... Rbc8 {[%clk 0:01:44.8]} 30. Rh3 {[%clk 0:00:38.9]} 30... Qf6 {[%clk
0:01:27.7]} 31. Reh1 {[%clk 0:00:30.3]} 31... Qxf3+ {[%clk 0:01:20.6]} 32. Kxf3
{[%clk 0:00:31.2]} 32... Bf6 {[%clk 0:01:20.9]} 33. b3 {[%clk 0:00:26]} 33...
Nd3 {[%clk 0:01:18.8]} 34. Ne3 {[%clk 0:00:23.1]} 34... Bg7 {[%clk 0:01:13.9]}
35. g5 {[%clk 0:00:20.7]} 35... Rc3 {[%clk 0:01:12.9]} 36. Ne2 {[%clk 0:00:19]}
36... Rc7 {[%clk 0:01:07.3]} 37. Nc4 {[%clk 0:00:18.3]} 37... Ne5+ {[%clk
0:01:00.4]} 38. Nxe5 {[%clk 0:00:17.8]} 38... Bxe5 {[%clk 0:01:00.6]} 39. Ke3
{[%clk 0:00:15.5]} 39... Rc2 {[%clk 0:01:00.4]} 40. f4 {[%clk 0:00:14.2]} 40...
Bg7 {[%clk 0:00:59.3]} 41. Kd3 {[%clk 0:00:13.2]} 41... Rxa2 {[%clk 0:00:59.2]}
42. Nd4 {[%clk 0:00:12.2]} 42... Ra3 {[%clk 0:00:57.5]} 43. f5 {[%clk
0:00:11.3]} 43... gxf5 {[%clk 0:00:56]} 44. exf5 {[%clk 0:00:10.2]} 44... f6
{[%clk 0:00:56.2]} 45. g6 {[%clk 0:00:09.5]} 45... a4 {[%clk 0:00:55.2]} 46. Kc2
{[%clk 0:00:07.6]} 46... axb3+ {[%clk 0:00:54.9]} 47. Nxb3 {[%clk 0:00:06]}
47... Rc8+ {[%clk 0:00:54.1]} 48. Kb2 {[%clk 0:00:05.9]} 48... Rca8 {[%clk
0:00:54]} 49. Ra1 {[%clk 0:00:05.5]} 49... Rxa1 {[%clk 0:00:53]} 50. Nxa1 {[%clk
0:00:06.4]} 50... Ra5 {[%clk 0:00:52.6]} 51. Rd3 {[%clk 0:00:05]} 51... Bh6
{[%clk 0:00:51.4]} 52. Nc2 {[%clk 0:00:05.1]} 52... Bf4 {[%clk 0:00:51.4]} 53.
Nxb4 {[%clk 0:00:05.7]} 53... Be5+ {[%clk 0:00:51.3]} 54. Kb3 {[%clk 0:00:06.4]}
54... Ra1 {[%clk 0:00:50.9]} 55. Rd2 {[%clk 0:00:06.3]} 55... Rf1 {[%clk
0:00:50.4]} 56. Rc2 {[%clk 0:00:06.1]} 56... Rxf5 {[%clk 0:00:50]} 57. Rc7
{[%clk 0:00:06.4]} 57... Rg5 {[%clk 0:00:49.2]} 58. Nc6 {[%clk 0:00:06.8]} 58...
f5 {[%clk 0:00:46.9]} 59. Ne7+ {[%clk 0:00:05.2]} 59... Kf8 {[%clk 0:00:45]} 60.
Kc4 {[%clk 0:00:04.1]} 60... f4 {[%clk 0:00:43.1]} 61. Kd3 {[%clk 0:00:04]}
61... Bf6 {[%clk 0:00:42.2]} 62. Nc8 {[%clk 0:00:03.7]} 62... Rxd5+ {[%clk
0:00:41.5]} 63. Ke4 {[%clk 0:00:03.3]} 63... Rd4+ {[%clk 0:00:41]} 64. Kf5
{[%clk 0:00:02.9]} 64... Be5 {[%clk 0:00:40.3]} 65. Rf7+ {[%clk 0:00:02.8]}
65... Ke8 {[%clk 0:00:39.6]} 66. Ne7 {[%clk 0:00:01.8]} 66... f3 {[%clk
0:00:37.8]} 67. Nc6 {[%clk 0:00:02.1]} 67... Rf4+ {[%clk 0:00:36.7]} 68. Ke6
{[%clk 0:00:02]} 68... Rxf7 {[%clk 0:00:35.7]} 69. gxf7+ {[%clk 0:00:02.9]}
69... Kf8 {[%clk 0:00:35.8]} 70. Ne7 {[%clk 0:00:01.5]} 70... f2 {[%clk
0:00:35.1]} 71. Ng6+ {[%clk 0:00:02]} 71... Kg7 {[%clk 0:00:34.6]} 72. f8=Q+
{[%clk 0:00:02.9]} 72... Kxg6 {[%clk 0:00:34.9]} 73. Qxf2 {[%clk 0:00:03.6]}
73... Kg5 {[%clk 0:00:34.4]} 74. Qf5+ {[%clk 0:00:04.5]} 74... Kh4 {[%clk
0:00:34.1]} 75. Kd5 {[%clk 0:00:05.1]} 75... Kg3 {[%clk 0:00:34.1]} 76. Ke4
{[%clk 0:00:05.7]} 76... Kg2 {[%clk 0:00:34.1]} 77. Qf3+ {[%clk 0:00:06.2]}
77... Kh2 {[%clk 0:00:33.8]} 78. Qg4 {[%clk 0:00:06.6]} 78... Kh1 {[%clk
0:00:33.7]} 79. Kf3 {[%clk 0:00:06.9]} 79... Bh2 {[%clk 0:00:33]} 80. Qg2#
{[%clk 0:00:07.1]} 1-0

[Event "*** Titled Tuesday Blitz"]
[Site "Chess.com"]
[Date "2020.04.28"]
[Round "6"]
[White "XDPS"]
[Black "Barys1974"]
[Result "1-0"]
[WhiteElo "2777"]
[BlackElo "2632"]
[TimeControl "180+1"]
[EndTime "11:08:30 PDT"]
[Termination "XDPS won by checkmate"]

1. d4 {[%clk 0:03:00]} 1... Nf6 {[%clk 0:02:59.3]} 2. Nf3 {[%clk 0:03:00.2]}
2... d5 {[%clk 0:02:57.5]} 3. c4 {[%clk 0:02:58.6]} 3... e6 {[%clk 0:02:57.3]}
4. Nc3 {[%clk 0:02:58]} 4... Bb4 {[%clk 0:02:55.2]} 5. cxd5 {[%clk 0:02:58.1]}
5... exd5 {[%clk 0:02:54.8]} 6. Bg5 {[%clk 0:02:58.5]} 6... h6 {[%clk
0:02:51.2]} 7. Bh4 {[%clk 0:02:58.4]} 7... O-O {[%clk 0:02:47.6]} 8. e3 {[%clk
0:02:56.8]} 8... Be6 {[%clk 0:02:47.6]} 9. Bd3 {[%clk 0:02:47.8]} 9... c5 {[%clk
0:02:43.6]} 10. O-O {[%clk 0:02:38.1]} 10... Nbd7 {[%clk 0:02:40.3]} 11. a3
{[%clk 0:02:33.5]} 11... Bxc3 {[%clk 0:02:39.6]} 12. bxc3 {[%clk 0:02:33.8]}
12... c4 {[%clk 0:02:39.5]} 13. Bc2 {[%clk 0:02:29.9]} 13... Qa5 {[%clk
0:02:37.1]} 14. Qd2 {[%clk 0:02:29.1]} 14... Ne4 {[%clk 0:02:34.4]} 15. Bxe4
{[%clk 0:02:24.8]} 15... dxe4 {[%clk 0:02:34.7]} 16. Ne1 {[%clk 0:02:25.1]}
16... Nb6 {[%clk 0:02:26.8]} 17. Nc2 {[%clk 0:02:23.1]} 17... Qh5 {[%clk
0:02:22.3]} 18. Bg3 {[%clk 0:02:18.8]} 18... Nd5 {[%clk 0:02:11.7]} 19. Nb4
{[%clk 0:02:18.5]} 19... b6 {[%clk 0:02:07.2]} 20. Rfb1 {[%clk 0:02:16.7]} 20...
Rfd8 {[%clk 0:02:06.3]} 21. Nc6 {[%clk 0:02:11.3]} 21... Rdc8 {[%clk 0:02:02.8]}
22. Nb4 {[%clk 0:02:01.6]} 22... Rd8 {[%clk 0:02:01.2]} 23. a4 {[%clk
0:02:00.7]} 23... Rac8 {[%clk 0:01:46]} 24. a5 {[%clk 0:01:48.9]} 24... b5
{[%clk 0:01:41.5]} 25. a6 {[%clk 0:01:44.5]} 25... Nb6 {[%clk 0:01:40.7]} 26.
Ra5 {[%clk 0:01:34.6]} 26... Na4 {[%clk 0:01:35.1]} 27. Ra1 {[%clk 0:01:30.6]}
27... Nb6 {[%clk 0:01:30.8]} 28. Rb1 {[%clk 0:01:24.9]} 28... Bd7 {[%clk
0:01:26.9]} 29. Bd6 {[%clk 0:01:05.4]} 29... Be8 {[%clk 0:01:21.6]} 30. Bf4
{[%clk 0:00:56.8]} 30... Na4 {[%clk 0:01:20.1]} 31. Qc2 {[%clk 0:00:53.7]} 31...
g5 {[%clk 0:01:17]} 32. Bg3 {[%clk 0:00:51.4]} 32... Qg6 {[%clk 0:01:15.9]} 33.
h4 {[%clk 0:00:36.2]} 33... Qe6 {[%clk 0:00:55.6]} 34. hxg5 {[%clk 0:00:34.9]}
34... hxg5 {[%clk 0:00:55.5]} 35. Ra1 {[%clk 0:00:31.7]} 35... f6 {[%clk
0:00:53.6]} 36. Qd2 {[%clk 0:00:26.8]} 36... Qb6 {[%clk 0:00:50.6]} 37. R5xa4
{[%clk 0:00:19.3]} 37... bxa4 {[%clk 0:00:50.8]} 38. Qe2 {[%clk 0:00:19.9]}
38... Kg7 {[%clk 0:00:48.2]} 39. Qg4 {[%clk 0:00:19.4]} 39... Bg6 {[%clk
0:00:38]} 40. Rxa4 {[%clk 0:00:19]} 40... Rh8 {[%clk 0:00:34.8]} 41. Qd7+ {[%clk
0:00:17.8]} 41... Bf7 {[%clk 0:00:34.6]} 42. Ra1 {[%clk 0:00:17.1]} 42... Rcd8
{[%clk 0:00:31.7]} 43. Qf5 {[%clk 0:00:16.2]} 43... Bg6 {[%clk 0:00:31.3]} 44.
Qg4 {[%clk 0:00:14.7]} 44... Rh7 {[%clk 0:00:29.9]} 45. f3 {[%clk 0:00:08.5]}
45... Re8 {[%clk 0:00:23.1]} 46. Kf2 {[%clk 0:00:08.2]} 46... Qe6 {[%clk
0:00:18.2]} 47. Qxe6 {[%clk 0:00:06.9]} 47... Rxe6 {[%clk 0:00:18.8]} 48. Ra5
{[%clk 0:00:06.6]} 48... Kh6 {[%clk 0:00:16.9]} 49. Rc5 {[%clk 0:00:06.6]} 49...
exf3 {[%clk 0:00:15.3]} 50. gxf3 {[%clk 0:00:07.5]} 50... Rhe7 {[%clk
0:00:14.2]} 51. e4 {[%clk 0:00:07.9]} 51... g4 {[%clk 0:00:14.7]} 52. Bf4+
{[%clk 0:00:07.1]} 52... Kg7 {[%clk 0:00:14]} 53. Nd5 {[%clk 0:00:07.7]} 53...
gxf3 {[%clk 0:00:13]} 54. Nxe7 {[%clk 0:00:07.6]} 54... Rxe7 {[%clk 0:00:13.7]}
55. e5 {[%clk 0:00:06]} 55... fxe5 {[%clk 0:00:09.7]} 56. Bxe5+ {[%clk
0:00:06.3]} 56... Kf7 {[%clk 0:00:09.2]} 57. Rxc4 {[%clk 0:00:06]} 57... Bd3
{[%clk 0:00:09.8]} 58. Rc6 {[%clk 0:00:06.3]} 58... Be2 {[%clk 0:00:09.9]} 59.
Rf6+ {[%clk 0:00:06.3]} 59... Ke8 {[%clk 0:00:09.7]} 60. Rc6 {[%clk 0:00:06.7]}
60... Kf7 {[%clk 0:00:09.3]} 61. c4 {[%clk 0:00:06.8]} 61... Re6 {[%clk
0:00:09.1]} 62. Rc7+ {[%clk 0:00:06.7]} 62... Kg6 {[%clk 0:00:09.4]} 63. c5
{[%clk 0:00:03.7]} 63... Rxa6 {[%clk 0:00:07.4]} 64. c6 {[%clk 0:00:04.1]} 64...
Ra2 {[%clk 0:00:07.3]} 65. Rg7+ {[%clk 0:00:04.3]} 65... Kf5 {[%clk 0:00:07.3]}
66. c7 {[%clk 0:00:05.2]} 66... Ke4 {[%clk 0:00:06.2]} 67. Rg4+ {[%clk
0:00:04.8]} 67... Kf5 {[%clk 0:00:06.2]} 68. c8=Q# {[%clk 0:00:05.2]} 1-0